bitfinex/quotes_SOLUSD_20241016
["timestamp","ask_amount","ask_price","bid_price","bid_amount"]
[1729080566800,0.1,155.76,155.67,15.5699]
[1729080566964,0.1,155.75,155.67,15.5699]
[1729080567305,0.1,155.74,155.67,15.5699]
[1729080567465,0.1,155.76,155.73,6.4213]
[1729080567789,0.1,155.78,155.75,6.4204]
[1729080568000,0.1,155.78,155.76,6.4201]
[1729080568490,0.1,155.75,155.74,22.4723]
[1729080568994,0.1,155.75,155.74,16.0518]
[1729080569597,0.1,155.78,155.74,16.0518]
[1729080569773,0.1,155.79,155.78,6.4193]
[1729080570168,0.1,155.81,155.78,6.4193]
[1729080570472,0.1,155.82,155.78,6.4192]
[1729080570672,0.1,155.83,155.81,6.418]
[1729080570880,0.1,155.83,155.75,32.1009]
[1729080570881,0.1,155.84,155.75,32.1009]
[1729080571089,0.1,155.85,155.83,6.4169]
[1729080571863,0.1,155.84,155.83,6.4169]
[1729080573287,0.1,155.85,155.83,6.4169]
[1729080573806,0.1,155.83,155.81,6.4176]
[1729080574384,0.1,155.81,155.75,32.1009]
[1729080574583,20.0,155.85,155.77,16.0492]
[1729080574584,0.1,155.78,155.77,16.0492]
[1729080574785,0.1,155.76,155.75,6.4204]
[1729080575795,0.1,155.74,155.73,22.4741]
[1729080576502,0.1,155.77,155.73,16.0531]
[1729080576695,0.1,155.78,155.73,16.0531]
[1729080576882,0.1,155.79,155.78,6.4193]
[1729080577075,0.1,155.8,155.75,16.0504]
[1729080577285,0.1,155.8,155.71,23.776884]
[1729080577598,20.0,155.85,155.81,6.418]
[1729080577599,0.1,155.83,155.81,6.418]
[1729080577776,0.1,155.84,155.8,16.0454]
[1729080577973,0.1,155.83,155.82,6.4176]
[1729080578173,0.1,155.81,155.8,22.4638]
[1729080578992,0.1,155.81,155.8,16.0454]
[1729080580109,0.1,155.81,155.79,6.4186]
[1729080580699,0.1,155.78,155.77,22.4683]
[1729080581201,0.1,155.78,155.77,16.049]
[1729080581502,0.1,155.75,155.74,22.4728]
[1729080582785,0.1,155.77,155.76,6.4201]
[1729080582983,0.1,155.79,155.78,6.4193]
[1729080585306,15.3175,155.82,155.71,23.776884]
[1729080585307,0.1,155.82,155.8,16.0457]
[1729080585507,0.1,155.82,155.81,6.418]
[1729080585708,0.1,155.83,155.81,6.418]
[1729080585885,0.1,155.82,155.81,6.418]
[1729080587907,0.1,155.78,155.76,16.0496]
[1729080588291,0.1,155.78,155.77,6.4197]
[1729080589705,0.1,155.79,155.76,16.0496]
[1729080589908,0.1,155.8,155.79,6.4188]
[1729080590115,0.1,155.8,155.79,16.0467]
[1729080590685,0.1,155.8,155.79,22.4655]
[1729080591385,0.1,155.82,155.79,16.0467]
[1729080591593,0.1,155.82,155.81,6.418]
[1729080595488,0.1,155.82,155.79,16.0467]
[1729080595489,0.1,155.8,155.79,16.0467]
[1729080595688,0.1,155.8,155.79,22.4655]
[1729080596112,0.1,155.81,155.8,6.4184]
[1729080597614,0.1,155.87,155.78,63.73154796]
[1729080597793,0.1,155.88,155.87,6.4156]
[1729080598316,0.1,155.89,155.79,23.776884]
[1729080598517,0.1,155.91,155.87,16.0385]
[1729080598724,6.2037,155.94,155.93,6.4131]
[1729080599024,6.2037,155.94,155.91,6.4135]
[1729080599621,0.1,155.93,155.91,6.4135]
[1729080600111,0.1,155.92,155.91,6.4135]
[1729080600317,0.1,155.97,155.95,6.4122]
[1729080600622,0.1,155.96,155.95,6.4122]
[1729080600990,0.1,155.97,155.95,6.4122]
[1729080601191,0.1,155.99,155.95,16.0307]
[1729080601407,0.1,156.0,155.98,6.411]
[1729080601588,0.1,155.99,155.98,6.411]
[1729080601995,0.1,156.0,155.98,6.411]
[1729080602194,0.1,156.03,156.0,6.4102]
[1729080602496,0.1,156.04,156.01,16.0245]
[1729080602700,0.1,156.05,156.03,6.409]
[1729080602904,0.1,156.02,156.01,16.0245]
[1729080603120,0.1,156.03,156.01,16.0245]
[1729080603323,0.1,156.05,156.01,16.0245]
[1729080603497,6.6426,156.06,156.01,16.0245]
[1729080603498,0.1,156.06,156.01,16.0245]
[1729080603818,0.1,156.06,156.03,6.4086]
[1729080604021,0.1,156.03,156.02,6.4094]
[1729080604227,6.5058,156.1,156.01,16.0245]
[1729080604228,0.1,156.06,156.01,16.0245]
[1729080604519,0.1,156.08,156.04,16.0214]
[1729080604722,0.1,156.05,156.04,16.0214]
[1729080605032,0.1,156.08,156.04,16.0214]
[1729080605598,0.1,156.1,156.08,6.4069]
[1729080605918,0.1,156.1,156.09,6.4065]
[1729080606093,0.1,156.09,156.07,6.407]
[1729080606516,0.1,156.1,156.06,16.0185]
[1729080607494,0.1,156.1,156.09,6.4065]
[1729080607715,0.1,156.11,156.1,6.406]
[1729080608218,0.7493603,156.13,156.1,6.4061]
[1729080608517,0.1,156.1,156.09,16.0162]
[1729080608695,0.1,156.12,156.09,22.4227]
[1729080608896,0.6493603,156.13,156.1,6.406]
[1729080609096,0.6493603,156.13,156.09,16.0162]
[1729080609396,0.6493603,156.13,156.12,6.4053]
[1729080610514,0.6493603,156.13,156.1,6.406]
[1729080610717,0.6493603,156.13,156.12,6.4053]
[1729080614123,0.6493603,156.13,156.11,6.4056]
[1729080614311,0.6493603,156.13,156.12,6.4053]
[1729080617019,15.2284,156.24,156.21,6.4012]
[1729080617020,0.1,156.24,156.21,6.4012]
[1729080617199,0.1,156.25,156.2,16.0046]
[1729080617405,0.1,156.28,156.25,6.4]
[1729080617722,0.7493603,156.29,156.26,6.3995]
[1729080617909,0.1,156.27,156.26,6.3995]
[1729080618115,0.6493603,156.29,156.23,17.28165498]
[1729080618116,0.6493603,156.29,156.27,6.3991]
[1729080618313,0.1,156.28,156.25,15.999]
[1729080618513,0.1,156.25,156.21,16.0031]
[1729080618718,0.1,156.25,156.23,6.4007]
[1729080618926,0.1,156.25,156.24,6.4004]
[1729080619911,0.6493603,156.29,156.22,1.2798151]
[1729080620124,0.6493603,156.29,156.27,6.3988]
[1729080620425,0.6493603,156.29,156.28,6.3987]
[1729080620808,0.1,156.28,156.26,22.3976]
[1729080621017,0.6493603,156.29,156.26,22.3976]
[1729080621018,0.7493603,156.29,156.26,22.3976]
[1729080621820,0.6493603,156.29,156.27,6.3989]
[1729080622338,0.1,156.26,156.23,16.0018]
[1729080622527,0.1,156.26,156.24,6.4003]
[1729080622829,0.1,156.27,156.25,6.3997]
[1729080623034,0.1,156.27,156.23,16.0018]
[1729080623335,0.1,156.26,156.23,22.4024]
[1729080623512,0.1,156.26,156.23,16.0018]
[1729080623713,0.1,156.28,156.26,6.3993]
[1729080624725,0.1,156.28,156.23,16.0018]
[1729080624726,0.1,156.25,156.23,16.0018]
[1729080624928,0.1,156.24,156.21,6.4014]
[1729080625109,0.1,156.23,156.21,6.4014]
[1729080625317,0.1,156.26,156.16,32.1169]
[1729080625520,0.1,156.26,156.23,6.4005]
[1729080625828,0.1,156.25,156.22,16.0025]
[1729080626020,0.1,156.25,156.24,6.4004]
[1729080626431,0.1,156.26,156.24,6.4004]
[1729080626813,0.1,156.25,156.24,6.4004]
[1729080627136,0.1,156.23,156.18,16.0063]
[1729080627813,0.1,156.26,156.22,6.4008]
[1729080628014,0.1,156.27,156.21,16.0033]
[1729080628234,0.1,156.27,156.25,6.3996]
[1729080628415,0.1,156.24,156.23,16.0011]
[1729080628622,0.1,156.24,156.19,16.0054]
[1729080628818,0.1,156.24,156.2,6.4017]
[1729080629615,0.1,156.24,156.21,6.4015]
[1729080630236,0.1,156.22,156.2,6.402]
[1729080630445,0.1,156.21,156.19,22.4078]
[1729080630612,0.1,156.19,156.16,16.0089]
[1729080631032,0.1,156.19,156.17,6.403]
[1729080631741,13.0664,156.22,156.18,16.0064]
[1729080631742,0.1,156.22,156.18,16.0064]
[1729080631960,6.2389,156.26,156.21,16.0036]
[1729080632322,6.1389,156.26,156.24,6.4004]
[1729080632534,6.2389,156.26,156.23,6.4007]
[1729080632840,0.7493603,156.29,156.25,6.3996]
[1729080633024,0.1,156.28,156.25,6.3996]
[1729080633232,0.1,156.28,156.26,6.3995]
[1729080633430,0.7493603,156.29,156.27,6.3987]
[1729080633754,0.6493603,156.29,156.27,6.3991]
[1729080633938,0.1,156.28,156.26,15.9981]
[1729080634253,0.6493603,156.29,156.26,22.3976]
[1729080634467,0.6493603,156.29,156.28,6.3987]
[1729080634753,0.7493603,156.29,156.26,15.9981]
[1729080634958,0.7493603,156.29,156.26,22.3976]
[1729080635451,0.1,156.28,156.26,22.3976]
[1729080635642,0.1,156.27,156.24,6.4]
[1729080635852,0.1,156.26,156.24,6.4003]
[1729080636349,0.1,156.25,156.23,16.0017]
[1729080636656,0.1,156.26,156.23,22.4024]
[1729080636855,0.1,156.27,156.24,6.4]
[1729080637152,0.7493603,156.29,156.27,6.3991]
[1729080637343,0.6493603,156.29,156.28,6.3987]
[1729080638130,0.6493603,156.29,156.22,31.73694796]
[1729080638131,0.7493603,156.29,156.25,6.3999]
[1729080638354,0.7493603,156.29,156.27,6.3991]
[1729080638830,0.6493603,156.29,156.23,1.27956867]
[1729080639035,0.6493603,156.29,156.28,6.3987]
[1729080640860,0.1,156.39,156.29,23.776884]
[1729080641157,0.1,156.39,156.36,6.3954]
[1729080641360,0.1,156.38,156.34,6.3959]
[1729080641565,0.1,156.38,156.35,6.3958]
[1729080641868,0.1,156.38,156.36,6.3953]
[1729080642058,0.1,156.39,156.36,6.3953]
[1729080642365,0.1,156.37,156.34,22.3866]
[1729080642757,0.1,156.38,156.34,22.3866]
[1729080642937,0.1,156.37,156.34,22.3866]
[1729080643135,0.1,156.34,156.32,6.397]
[1729080643340,6.5388,156.4,156.31,22.3909]
[1729080643341,0.1,156.35,156.31,22.3909]
[1729080643763,0.1,156.34,156.31,22.3909]
[1729080643940,0.1,156.33,156.31,15.9936]
[1729080644488,0.1,156.34,156.31,15.9936]
[1729080645562,0.1,156.35,156.31,15.9936]
[1729080645746,0.1,156.36,156.32,6.3968]
[1729080646062,6.495,156.37,156.33,6.3966]
[1729080646665,0.1,156.37,156.33,6.3966]
[1729080646861,0.1,156.37,156.31,15.9936]
[1729080647063,0.1,156.37,156.34,6.3963]
[1729080647365,0.1,156.38,156.35,6.3958]
[1729080647547,0.1,156.37,156.35,6.3958]
[1729080648066,6.4957,156.36,156.31,6.3975]
[1729080648374,0.1,156.37,156.29,31.9914]
[1729080648554,6.4947,156.38,156.33,15.9917]
[1729080648877,20.1,156.39,156.33,15.9917]
[1729080649170,0.1,156.36,156.33,22.3884]
[1729080649343,0.1,156.37,156.33,22.3884]
[1729080649870,13.0329,156.4,156.35,6.3955]
[1729080650340,6.6388,156.4,156.35,15.989]
[1729080650541,6.6388,156.4,156.36,6.3954]
[1729080650740,6.4951,156.37,156.33,6.3965]
[1729080650942,6.5388,156.4,156.33,6.3965]
[1729080650943,6.4948,156.38,156.33,6.3965]
[1729080651167,6.4943,156.39,156.34,6.396]
[1729080651469,0.1,156.38,156.35,6.3959]
[1729080651842,0.1,156.39,156.34,15.99]
[1729080652153,0.1,156.39,156.36,22.3833]
[1729080652358,0.1,156.39,156.36,15.988]
[1729080652939,0.1,156.39,156.36,22.3833]
[1729080653253,0.1,156.38,156.36,15.988]
[1729080653770,0.1,156.38,156.3,23.776884]
[1729080654059,0.1,156.38,156.35,6.3958]
[1729080654266,6.4943,156.39,156.35,6.3958]
[1729080654459,0.1,156.38,156.35,6.3958]
[1729080654662,0.1,156.38,156.33,15.9914]
[1729080654663,0.1,156.35,156.31,6.3972]
[1729080655072,0.1,156.38,156.32,15.9921]
[1729080655253,0.1,156.38,156.35,6.3958]
[1729080657585,0.1,156.37,156.34,22.3861]
[1729080657960,6.4947,156.38,156.34,22.3861]
[1729080658878,0.1,156.37,156.34,22.3861]
[1729080659955,6.6388,156.4,156.34,15.99]
[1729080660277,6.6388,156.4,156.36,22.3834]
[1729080660459,0.1,156.39,156.36,22.3834]
[1729080660658,6.5388,156.4,156.36,22.3834]
[1729080660659,6.6388,156.4,156.36,22.3834]
[1729080661054,0.1,156.37,156.33,15.9911]
[1729080661282,0.1,156.32,156.27,15.9973]
[1729080661486,6.4963,156.34,156.29,6.3982]
[1729080661668,6.4959,156.35,156.3,6.3976]
[1729080662369,6.4959,156.35,156.31,6.3974]
[1729080662569,0.1,156.34,156.31,6.3974]
[1729080662874,0.1,156.36,156.32,6.3968]
[1729080663200,0.1,156.37,156.32,6.3968]
[1729080663371,0.1,156.38,156.33,15.9909]
[1729080663570,0.1,156.39,156.33,15.9909]
[1729080663779,0.1,156.39,156.36,6.3951]
[1729080664092,6.5388,156.4,156.36,6.3951]
[1729080664093,0.1,156.38,156.36,6.3951]
[1729080664383,0.1,156.39,156.36,6.3951]
[1729080664561,0.1,156.4,156.37,15.9872]
[1729080664767,0.1,156.41,156.38,6.3942]
[1729080664975,0.1,156.42,156.38,6.3942]
[1729080665485,0.1,156.4,156.38,6.3942]
[1729080665985,0.1,156.41,156.38,6.3942]
[1729080666181,0.1,156.42,156.4,6.3937]
[1729080666580,0.1,156.4,156.38,6.3946]
[1729080667073,0.1,156.4,156.37,15.9872]
[1729080667074,0.1,156.39,156.33,15.9909]
[1729080667270,0.1,156.37,156.33,15.9909]
[1729080667491,0.1,156.35,156.33,15.9909]
[1729080667788,20.0,156.43,156.34,6.3963]
[1729080667789,0.1,156.37,156.34,6.3963]
[1729080668287,0.1,156.35,156.32,22.3886]
[1729080668470,0.1,156.37,156.32,15.9918]
[1729080668977,0.1,156.37,156.34,6.3961]
[1729080669293,0.1,156.36,156.32,15.9918]
[1729080669509,0.1,156.34,156.32,15.9918]
[1729080669787,0.1,156.34,156.3,6.3979]
[1729080669998,0.1,156.33,156.3,6.3979]
[1729080670365,0.1,156.34,156.3,6.3979]
[1729080670667,0.1,156.34,156.32,6.3969]
[1729080670868,0.1,156.36,156.32,15.9925]
[1729080671072,0.1,156.35,156.32,22.3893]
[1729080671371,20.0,156.39,156.31,6.3971]
[1729080671372,0.1,156.33,156.31,6.3971]
[1729080671565,0.1,156.33,156.29,15.9954]
[1729080671774,0.1,156.34,156.29,15.9954]
[1729080671978,0.1,156.34,156.3,6.3978]
[1729080672501,0.1,156.36,156.32,6.3967]
[1729080672681,0.1,156.36,156.33,6.3966]
[1729080673277,0.1,156.36,156.33,15.9911]
[1729080673481,0.1,156.36,156.35,6.3959]
[1729080674295,0.1,156.37,156.36,6.3954]
[1729080674476,0.1,156.37,156.35,15.9888]
[1729080674678,0.1,156.34,156.32,22.3895]
[1729080675080,0.1,156.33,156.26,8.11246192]
[1729080675285,0.1,156.35,156.26,8.11246192]
[1729080675491,0.1,156.34,156.26,8.11246192]
[1729080675795,20.0,156.39,156.31,15.993]
[1729080675796,0.1,156.36,156.31,15.993]
[1729080675971,0.1,156.35,156.33,6.3965]
[1729080676173,0.1,156.36,156.31,15.993]
[1729080676394,0.1,156.37,156.34,6.3962]
[1729080676596,0.1,156.36,156.34,6.3962]
[1729080677275,0.1,156.37,156.35,6.3958]
[1729080677589,0.1,156.36,156.35,6.3958]
[1729080678505,0.1,156.35,156.33,15.9909]
[1729080678681,0.1,156.36,156.33,15.9909]
[1729080678891,0.1,156.36,156.33,22.3875]
[1729080680394,0.1,156.35,156.33,22.3875]
[1729080680698,0.1,156.36,156.33,22.3875]
[1729080680906,0.1,156.35,156.33,22.3875]
[1729080681781,0.1,156.36,156.35,6.3959]
[1729080682178,0.1,156.35,156.33,15.9909]
[1729080682391,6.3945,156.39,156.34,6.3962]
[1729080682392,0.1,156.36,156.34,6.3962]
[1729080682585,0.1,156.35,156.34,6.3962]
[1729080682902,0.1,156.36,156.34,6.3962]
[1729080683089,0.1,156.36,156.35,6.3959]
[1729080684798,0.1,156.32,156.3,15.9946]
[1729080685384,0.1,156.34,156.3,15.9946]
[1729080685582,0.1,156.33,156.32,6.3971]
[1729080686191,0.1,156.33,156.31,6.3974]
[1729080686406,0.1,156.34,156.33,6.3965]
[1729080686894,0.1,156.31,156.29,22.3936]
[1729080687096,0.1,156.29,156.27,6.3988]
[1729080687296,12.6847,156.32,156.26,6.3995]
[1729080687297,0.1,156.28,156.26,6.3995]
[1729080687488,0.1,156.28,156.27,6.3991]
[1729080688798,0.1,156.3,156.27,6.3991]
[1729080689005,12.6847,156.32,156.26,31.9974]
[1729080689006,0.1,156.31,156.26,31.9974]
[1729080689297,6.3875,156.32,156.3,6.3975]
[1729080689521,6.2875,156.32,156.3,6.3975]
[1729080689683,0.1,156.33,156.3,6.3975]
[1729080690301,0.1,156.32,156.3,6.3975]
[1729080690603,0.1,156.31,156.3,6.3975]
[1729080691207,0.1,156.32,156.3,6.3975]
[1729080692099,16.69,156.34,156.29,15.9952]
[1729080692304,0.1,156.33,156.31,6.3972]
[1729080692607,12.781,156.36,156.34,6.3963]
[1729080692608,0.1,156.36,156.34,6.3963]
[1729080693802,0.1,156.35,156.34,6.3963]
[1729080694183,0.1,156.35,156.33,6.3967]
[1729080695007,0.1,156.35,156.34,6.3963]
[1729080695180,0.1,156.35,156.34,6.3961]
[1729080695381,0.1,156.37,156.34,15.9903]
[1729080696388,0.1,156.37,156.36,6.3954]
[1729080697083,0.1,156.37,156.34,15.9903]
[1729080697287,0.1,156.33,156.32,6.397]
[1729080697497,0.1,156.33,156.31,22.3908]
[1729080698207,0.1,156.32,156.3,6.3976]
[1729080698506,0.1,156.29,156.25,15.9993]
[1729080698896,0.1,156.29,156.27,6.399]
[1729080699094,0.1,156.29,156.28,6.3987]
[1729080699398,0.1,156.31,156.27,15.9975]
[1729080699582,0.1,156.31,156.29,6.3982]
[1729080699999,0.1,156.4,156.39,15.9856]
[1729080700286,0.1,156.44,156.35,10.1670619]
[1729080700482,0.7493603,156.45,156.43,6.3926]
[1729080700699,0.1,156.44,156.43,6.3926]
[1729080701005,0.7493603,156.45,156.41,15.9826]
[1729080701206,0.1,156.44,156.43,6.3925]
[1729080701411,0.1,156.44,156.38,22.381]
[1729080701412,0.1,156.39,156.38,22.381]
[1729080701613,0.1,156.39,156.38,15.9864]
[1729080701797,0.1,156.39,156.38,22.381]
[1729080702188,0.1,156.4,156.38,22.381]
[1729080702395,0.1,156.39,156.38,22.381]
[1729080703810,0.1,156.4,156.39,6.3942]
[1729080704589,0.1,156.39,156.38,15.9864]
[1729080704802,0.1,156.39,156.38,22.381]
[1729080705604,0.1,156.39,156.31,39.26384174]
[1729080705808,0.1,156.36,156.35,15.9896]
[1729080706113,0.1,156.36,156.35,22.3852]
[1729080706408,0.1,156.36,156.35,15.9896]
[1729080706795,0.1,156.32,156.31,15.9928]
[1729080707311,0.1,156.32,156.31,22.3903]
[1729080707612,0.1,156.32,156.29,6.398]
[1729080707805,0.1,156.31,156.3,6.3979]
[1729080708392,0.1,156.33,156.31,15.9934]
[1729080708707,0.1,156.33,156.32,6.3971]
[1729080709297,0.1,156.34,156.33,6.3967]
[1729080710816,0.1,156.34,156.32,6.3971]
[1729080710997,0.1,156.34,156.33,6.3967]
[1729080713420,0.1,156.35,156.34,6.3963]
[1729080714334,0.1,156.36,156.35,6.3959]
[1729080714829,0.1,156.35,156.3,47.983]
[1729080714994,0.1,156.35,156.32,6.397]
[1729080716515,0.1,156.33,156.32,6.397]
[1729080717914,0.1,156.35,156.34,6.3963]
[1729080718301,6.0708,156.4,156.33,15.9913]
[1729080718302,0.1,156.36,156.35,6.3959]
[1729080718506,0.1,156.37,156.36,6.3954]
[1729080719103,0.1,156.38,156.37,6.395]
[1729080722421,0.1,156.4,156.39,6.3942]
[1729080723105,0.1,156.4,156.38,6.3945]
[1729080723298,0.1,156.35,156.34,22.3864]
[1729080723612,0.1,156.37,156.36,6.3954]
[1729080724002,0.1,156.37,156.35,6.3958]
[1729080724324,0.1,156.37,156.36,6.3954]
[1729080728814,0.1,156.35,156.34,22.3864]
[1729080729720,0.1,156.37,156.33,19.63857782]
[1729080729934,0.1,156.39,156.36,15.9882]
[1729080730115,0.1,156.4,156.34,31.9802]
[1729080730316,0.1,156.39,156.38,22.3808]
[1729080731212,0.1,156.4,156.39,6.3942]
[1729080734619,0.6493603,156.45,156.41,6.3934]
[1729080734620,0.1,156.42,156.41,6.3934]
[1729080735424,0.1,156.43,156.42,6.393]
[1729080736132,0.1,156.38,156.37,35.9875]
[1729080736342,0.1,156.38,156.37,42.3825]
[1729080736509,0.1,156.39,156.38,6.3946]
[1729080737240,0.1,156.39,156.37,35.9875]
[1729080737241,0.1,156.4,156.39,6.3942]
[1729080738151,0.1,156.41,156.4,6.3938]
[1729080739311,0.1,156.42,156.39,15.9851]
[1729080739530,0.1,156.42,156.41,22.3765]
[1729080740626,0.6493603,156.45,156.42,6.393]
[1729080740627,0.1,156.43,156.42,6.393]
[1729080742128,0.1,156.43,156.41,22.3762]
[1729080743045,23.776884,156.44,156.41,22.3762]
[1729080743046,0.1,156.42,156.41,22.3762]
[1729080743918,0.1,156.42,156.41,22.3765]
[1729080744937,0.1,156.43,156.42,6.393]
[1729080745845,0.1,156.42,156.41,15.9831]
[1729080746144,0.1,156.42,156.41,22.3764]
[1729080746344,0.1,156.41,156.37,15.9867]
[1729080746523,0.1,156.38,156.37,42.3817]
[1729080747131,0.1,156.39,156.38,6.3946]
[1729080747333,0.1,156.38,156.37,15.9867]
[1729080747536,0.1,156.38,156.37,22.3817]
[1729080749340,6.0248,156.4,156.31,6.3975]
[1729080749341,0.1,156.32,156.31,6.3975]
[1729080749831,0.1,156.32,156.29,6.3983]
[1729080750024,0.1,156.26,156.23,1.11164608]
[1729080750221,0.1,156.24,156.23,6.4005]
[1729080751542,0.1,156.22,156.21,22.4046]
[1729080751737,0.1,156.22,156.21,42.4046]
[1729080752445,0.1,156.24,156.23,6.4008]
[1729080752651,0.1,156.25,156.21,36.0034]
[1729080752821,0.1,156.25,156.24,6.4004]
[1729080753253,20.1,156.32,156.21,36.0034]
[1729080753254,0.1,156.22,156.21,16.0034]
[1729080753545,0.1,156.22,156.21,22.405]
[1729080754151,0.1,156.24,156.21,16.0034]
[1729080754451,0.1,156.26,156.25,6.4]
[1729080754745,0.1,156.25,156.24,42.4009]
[1729080755549,0.1,156.26,156.25,26.4]
[1729080755936,0.1,156.26,156.25,6.4]
[1729080756526,0.1,156.28,156.24,16.0005]
[1729080756835,0.1,156.27,156.26,6.3995]
[1729080757026,0.1,156.29,156.28,6.3987]
[1729080757227,0.1,156.3,156.29,6.3983]
[1729080758842,0.1,156.32,156.3,15.9944]
[1729080759024,0.1,156.34,156.3,15.9944]
[1729080759230,0.1,156.34,156.33,6.3967]
[1729080759844,0.1,156.35,156.33,22.388]
[1729080760158,0.1,156.37,156.36,6.3954]
[1729080761347,0.1,156.38,156.37,6.395]
[1729080762928,0.1,156.37,156.36,15.9882]
[1729080763134,0.1,156.33,156.32,26.3971]
[1729080763340,0.1,156.33,156.32,6.3971]
[1729080763843,0.1,156.34,156.33,6.3967]
[1729080765535,0.1,156.33,156.32,1.98075511]
[1729080765740,0.1,156.32,156.31,15.9933]
[1729080765951,0.1,156.28,156.26,15.9985]
[1729080766157,0.1,156.28,156.27,1.98070302]
[1729080766742,0.1,156.28,156.27,8.37980302]
[1729080766941,0.1,156.29,156.27,1.98070302]
[1729080767249,0.1,156.3,156.29,6.3983]
[1729080771754,0.1,156.33,156.31,6.3975]
[1729080772089,0.1,156.33,156.32,6.3971]
[1729080777339,0.1,156.34,156.33,6.3967]
[1729080779070,0.1,156.34,156.33,8.37693644]
[1729080779371,0.1,156.34,156.33,8.35667704]
[1729080779546,0.1,156.34,156.33,6.3764406]
[1729080780045,0.1,156.33,156.32,22.3894]
[1729080780260,0.1,156.33,156.25,31.999]
[1729080780261,0.1,156.3,156.25,32.099]
[1729080780461,0.1,156.29,156.28,15.9959]
[1729080780646,0.1,156.3,156.29,6.3983]
[1729080780847,0.1,156.32,156.29,1.9795227]
[1729080781257,0.1,156.32,156.29,5.56123932]
[1729080781442,0.1,156.33,156.29,1.9795227]
[1729080781642,0.1,156.33,156.32,6.3971]
[1729080781955,0.1,156.35,156.34,6.3963]
[1729080783546,0.1,156.33,156.32,1.9795227]
[1729080783747,0.1,156.33,156.31,15.9933]
[1729080783962,0.1,156.33,156.32,6.3971]
[1729080784578,0.1,156.33,156.31,15.9933]
[1729080784866,0.1,156.32,156.31,22.3907]
[1729080785065,0.1,156.32,156.31,24.37011213]
[1729080785371,0.1,156.32,156.31,15.9933]
[1729080785669,23.876884,156.31,156.3,6.3978]
[1729080785843,23.876884,156.31,156.29,8.37747384]
[1729080786044,0.1,156.3,156.29,1.97927384]
[1729080786239,0.1,156.26,156.25,15.9999]
[1729080786554,0.1,156.26,156.25,1.97942254]
[1729080786751,0.1,156.26,156.19,8.09666681]
[1729080786752,0.1,156.21,156.19,8.09666681]
[1729080787060,0.1,156.18,156.17,6.4032]
[1729080787256,0.1,156.18,156.17,8.38326236]
[1729080787769,0.1,156.18,156.17,6.4032]
[1729080787974,0.1,156.17,156.16,16.0087]
[1729080788266,0.1,156.17,156.12,16.0124]
[1729080788456,0.1,156.17,156.14,6.4044]